bitfinex/quotes_ETHUSD_20251122
["timestamp","ask_amount","ask_price","bid_price","bid_amount"]
[1763831956420,11.46770974,2753.7,2753.5,0.001]
[1763831956629,10.21771074,2753.7,2753.5,0.001]
[1763831956833,4.65021274,2753.7,2753.6,0.4822]
[1763831957006,5.20368833,2753.7,2753.6,0.001]
[1763831957409,2.06789133,2753.7,2753.6,0.001]
[1763831957615,5.66267833,2753.7,2753.6,0.001]
[1763831957839,2.06789133,2753.7,2753.6,0.001]
[1763831958040,5.86050774,2753.7,2753.6,0.4822]
[1763831958248,4.92754174,2753.7,2753.6,0.4822]
[1763831958411,6.38166174,2753.7,2753.6,0.001]
[1763831958740,6.33756674,2753.7,2753.6,0.001]
[1763831959530,4.42382574,2753.7,2753.6,0.001]
[1763831959743,4.89767836,2753.7,2753.6,0.001]
[1763831959938,4.19647836,2753.7,2753.6,0.4822]
[1763831960347,4.19647836,2753.7,2753.6,0.001]
[1763831960643,7.32111436,2753.7,2753.6,0.001]
[1763831960817,5.00224036,2753.7,2753.6,0.001]
[1763831961018,1.39141574,2753.7,2753.6,0.954]
[1763831961358,1.51441574,2753.7,2753.6,0.954]
[1763831961719,3.59473174,2753.7,2753.6,0.954]
[1763831962024,3.59473174,2753.7,2753.6,0.4822]
[1763831962356,3.95440491,2753.7,2753.6,0.001]
[1763831962516,8.95072291,2753.7,2753.6,0.001]
[1763831962719,8.95197253,2753.7,2753.6,0.001]
[1763831963545,1.87533853,2753.7,2753.6,0.001]
[1763831963746,12.71951453,2753.7,2753.6,0.001]
[1763831963949,9.55834453,2753.7,2753.6,0.001]
[1763831964814,12.04865253,2753.7,2753.6,0.001]
[1763831965073,11.47333153,2753.7,2753.6,0.001]
[1763831965277,11.87883553,2753.7,2753.6,0.001]
[1763831965461,16.15990364,2753.6,2753.5,0.001]
[1763831965769,2.67670859,2753.7,2753.6,0.953]
[1763831965967,4.04691975,2753.7,2753.6,0.953]
[1763831966565,1.87549375,2753.7,2753.6,0.953]
[1763831966768,3.57218958,2753.7,2753.6,0.953]
[1763831967273,1.51582058,2753.7,2753.6,0.953]
[1763831967647,1.39282058,2753.7,2753.6,0.953]
[1763831967854,0.60882794,2753.7,2753.6,0.953]
[1763831968049,5.44706858,2753.7,2753.6,0.953]
[1763831968343,1.51582058,2753.7,2753.6,0.953]
[1763831969373,6.42148758,2753.7,2753.6,0.4812]
[1763831969577,4.44572358,2753.7,2753.6,0.4812]
[1763831969745,1.51582058,2753.7,2753.6,0.953]
[1763831970477,3.65606858,2753.7,2753.6,0.953]
[1763831971653,3.65606858,2753.7,2753.6,0.4812]
[1763831971852,0.90699264,2753.6,2753.5,0.001]
[1763831972056,6.86355116,2753.6,2753.5,0.001]
[1763831972254,0.34021852,2753.6,2753.5,0.954]
[1763831972456,0.81301852,2753.6,2753.5,0.954]
[1763831975995,0.93601852,2753.6,2753.5,0.954]
[1763831978711,0.34021852,2753.6,2753.5,0.954]
[1763831978896,0.123,2753.8,2753.5,1.42393171]
[1763831979098,1.05901852,2753.8,2753.6,4.23391706]
[1763831979417,1.05901852,2753.8,2753.7,0.4927]
[1763831979418,0.123,2753.8,2753.7,0.4927]
[1763831979704,0.123,2753.8,2753.5,0.4916]
[1763831979870,0.46315343,2753.8,2753.7,0.4927]
[1763831980276,0.34015343,2753.8,2753.7,1.45606171]
[1763831980707,0.34015343,2753.8,2753.5,0.4916]
[1763831980900,0.34015343,2753.8,2753.7,0.4927]
[1763831981195,0.34015343,2753.8,2753.7,0.9833]
[1763831982418,0.34015343,2753.8,2753.7,0.4927]
[1763831982626,0.34015343,2753.8,2753.7,0.9833]
[1763831984188,0.002,2753.9,2753.7,5.20301051]
[1763831984492,0.002,2753.9,2753.8,0.9833]
[1763831986922,0.002,2753.9,2753.8,0.4927]
[1763831987224,0.002,2753.9,2753.8,0.9833]
[1763831987591,0.002,2753.9,2753.8,0.4927]
[1763831988024,0.002,2753.9,2753.5,4.3716]
[1763831988234,0.122,2753.8,2753.5,4.3716]
[1763831989126,0.1455559,2753.7,2753.5,4.3716]
[1763831989327,0.1455559,2753.7,2753.5,3.881]
[1763831989645,0.1455559,2753.7,2753.6,0.4927]
[1763831991443,0.1455559,2753.7,2753.6,0.9833]
[1763831991614,0.1455559,2753.7,2753.6,0.4927]
[1763831994206,0.1455559,2753.7,2753.6,0.9833]
[1763831994625,0.2675559,2753.7,2753.6,0.9833]
[1763831995030,0.2675559,2753.7,2753.5,0.001]
[1763831995234,11.237941,2753.6,2753.5,0.001]
[1763831995564,11.19584159,2753.6,2753.5,0.001]
[1763831995731,11.34141921,2753.6,2753.5,0.001]
[1763831996360,15.08969943,2753.6,2753.5,0.001]
[1763831997348,14.50720343,2753.6,2753.5,0.001]
[1763831997757,14.6916881,2753.6,2753.5,0.001]
[1763831998423,12.9456881,2753.6,2753.5,0.001]
[1763831999347,14.7459931,2753.6,2753.5,0.001]
[1763831999521,12.9999931,2753.6,2753.5,0.001]
[1763832000138,8.1088631,2753.6,2753.5,0.001]
[1763832000361,6.4456911,2753.6,2753.5,0.001]
[1763832000524,5.20444215,2753.6,2753.5,0.001]
[1763832001072,5.60994615,2753.6,2753.5,0.001]
[1763832001566,24.24929515,2753.6,2753.5,0.001]
[1763832002559,25.02186515,2753.6,2753.5,0.001]
[1763832003051,24.28084515,2753.6,2753.5,0.001]
[1763832003245,27.46979308,2753.6,2753.5,0.001]
[1763832003445,1.05580851,2753.6,2753.5,0.4937]
[1763832003648,0.60790584,2753.6,2753.5,0.9843]
[1763832004229,0.26757762,2753.6,2753.5,0.9843]
[1763832004657,0.122,2753.6,2753.5,0.9843]
[1763832005025,1.36932086,2753.6,2753.5,0.001]
[1763832005227,19.65930785,2753.6,2753.5,0.001]
[1763832006357,19.74695719,2753.6,2753.5,0.001]
[1763832006662,20.31686579,2753.6,2753.5,0.001]
[1763832006858,19.97653757,2753.6,2753.5,0.001]
[1763832007047,9.44591451,2753.6,2753.5,0.001]
[1763832007248,4.86451652,2753.6,2753.5,0.4646]
[1763832007475,1.81686818,2753.6,2753.5,0.9449]
[1763832007629,5.00823818,2753.6,2753.5,0.9449]
[1763832008059,4.43832958,2753.6,2753.5,0.9449]
[1763832008273,1.36995958,2753.6,2753.5,0.9449]
[1763832008765,1.36995958,2753.6,2753.5,0.4646]
[1763832009964,1.36995958,2753.6,2753.5,0.9449]
[1763832014205,1.36995958,2753.6,2753.5,0.001]
[1763832014382,4.05289958,2753.6,2753.5,0.001]
[1763832014900,4.05289958,2753.6,2753.5,0.4646]
[1763832015101,4.05289958,2753.6,2753.5,0.001]
[1763832015307,5.46040354,2753.6,2753.5,0.001]
[1763832015670,4.14948354,2753.6,2753.5,0.001]
[1763832016370,4.06871754,2753.6,2753.5,0.001]
[1763832017105,4.2143047,2753.6,2753.5,0.001]
[1763832017304,15.5415787,2753.6,2753.5,0.001]
[1763832018313,27.3379777,2753.6,2753.5,0.001]
[1763832019318,20.2415087,2753.6,2753.5,0.001]
[1763832020633,21.6019207,2753.6,2753.5,0.001]
[1763832020828,20.5894207,2753.6,2753.5,0.001]
[1763832021338,16.9217717,2753.6,2753.5,0.001]
[1763832021493,24.4541277,2753.6,2753.5,0.001]
[1763832021893,24.8596317,2753.6,2753.5,0.001]
[1763832022201,14.9878797,2753.6,2753.5,0.001]
[1763832022399,24.3339837,2753.6,2753.5,0.001]
[1763832022612,16.7957507,2753.6,2753.5,0.001]
[1763832022988,16.4949837,2753.6,2753.5,0.001]
[1763832023804,7.3184307,2753.6,2753.5,0.001]
[1763832024003,6.7870467,2753.6,2753.5,0.001]
[1763832024488,23.5433657,2753.6,2753.5,0.001]
[1763832025503,24.1160627,2753.6,2753.5,0.001]
[1763832025833,17.0096607,2753.6,2753.5,0.001]
[1763832026402,2.3265407,2753.6,2753.5,0.001]
[1763832026635,20.98785974,2753.6,2753.5,0.001]
[1763832026812,18.36885974,2753.6,2753.5,0.001]
[1763832027645,14.42750074,2753.6,2753.5,0.001]
[1763832027806,6.94505274,2753.6,2753.5,0.001]
[1763832028629,5.00613874,2753.6,2753.5,0.4646]
[1763832028831,5.50695261,2753.6,2753.5,0.4646]
[1763832029204,1.39254674,2753.6,2753.5,0.4646]
[1763832029402,1.36995958,2753.6,2753.5,0.9449]
[1763832032339,1.24695958,2753.6,2753.5,0.9449]
[1763832032637,0.002,2753.8,2753.5,0.9449]
[1763832032840,0.002,2753.8,2753.7,4.47515689]
[1763832033053,0.125,2753.8,2753.7,0.95924569]
[1763832033256,0.125,2753.8,2753.7,0.9439]
[1763832034029,0.46554973,2753.8,2753.7,0.9439]
[1763832034429,4.19413664,2753.8,2753.7,0.9439]
[1763832034630,4.53468637,2753.8,2753.7,0.4636]
[1763832034815,1.37254237,2753.8,2753.7,0.9439]
[1763832038212,1.24954237,2753.8,2753.7,0.9439]
[1763832038436,1.37154237,2753.8,2753.7,0.9439]
[1763832039349,1.03099264,2753.8,2753.7,0.9439]
[1763832039546,1.03099264,2753.8,2753.7,1.43954569]
[1763832043971,0.90899264,2753.8,2753.7,1.43954569]
[1763832045916,0.90899264,2753.8,2753.7,0.9439]
[1763832046967,0.90899264,2753.8,2753.7,0.4636]
[1763832047129,0.90699264,2753.7,2753.6,0.001]
[1763832047319,0.002,2753.8,2753.6,0.001]
[1763832048482,0.14756967,2753.8,2753.6,0.001]
[1763832050458,0.14756967,2753.8,2753.7,0.4926]
[1763832050661,0.002,2753.8,2753.7,0.4926]
[1763832051562,0.002,2753.8,2753.6,0.001]
[1763832051765,0.002,2753.8,2753.7,0.4926]
[1763832051962,0.002,2753.8,2753.6,0.001]
[1763832052493,6.15037264,2753.7,2753.6,0.001]
[1763832052682,6.49010777,2753.7,2753.6,0.001]
[1763832052880,15.96718355,2753.7,2753.6,0.001]
[1763832053886,18.11309755,2753.7,2753.6,0.001]
[1763832054467,7.92613855,2753.7,2753.6,0.001]
[1763832055064,4.92613855,2753.7,2753.6,0.001]
[1763832055871,5.63449455,2753.7,2753.6,0.001]
[1763832056072,5.37749455,2753.7,2753.6,0.001]
[1763832056271,2.04171352,2753.7,2753.6,0.001]
[1763832056514,3.56258174,2753.7,2753.6,0.001]
[1763832056703,3.46998174,2753.7,2753.6,0.001]
[1763832056883,1.39230274,2753.7,2753.6,0.001]
[1763832057079,4.74699374,2753.7,2753.6,0.001]
[1763832057884,13.96133374,2753.7,2753.6,0.001]
[1763832058085,12.23650311,2753.7,2753.6,0.001]
[1763832058405,9.63362311,2753.7,2753.6,0.001]
[1763832058602,8.44822311,2753.7,2753.6,0.001]
[1763832059109,0.33973513,2753.7,2753.6,0.9652]
[1763832059418,0.122,2753.7,2753.6,0.9652]
[1763832060271,0.33973513,2753.7,2753.6,0.9652]
[1763832060505,0.002,2753.8,2753.6,0.9652]
[1763832060807,0.002,2753.9,2753.7,4.97575689]
[1763832060985,0.002,2754.1,2753.8,0.99027569]
[1763832061181,0.002,2754.1,2754.0,0.4926]
[1763832061601,0.002,2754.1,2754.0,0.9642]
[1763832068028,0.002,2754.1,2754.0,0.4926]
[1763832068234,0.002,2754.1,2753.7,0.4524]
[1763832068419,0.002,2754.1,2754.0,0.4726]
[1763832068924,0.002,2754.1,2753.7,0.4524]
[1763832069505,0.002,2754.1,2754.0,0.4726]
[1763832069934,0.002,2754.1,2754.0,0.925]
[1763832076554,0.002,2754.1,2754.0,1.38061857]
[1763832076753,0.002,2754.1,2754.0,5.01170063]
[1763832076915,0.002,2754.1,2754.0,8.89170063]
[1763832079259,0.002,2754.1,2754.0,5.26061857]
[1763832079462,0.002,2754.1,2754.0,9.39720463]
[1763832079649,0.002,2754.2,2754.1,0.405504]
[1763832079856,0.002,2754.2,2754.1,3.25044347]
[1763832080640,0.002,2754.2,2754.1,10.76139368]
[1763832081131,0.002,2754.2,2754.1,10.47788968]
[1763832083765,0.002,2754.2,2754.1,10.35588968]
[1763832084672,0.002,2754.2,2754.1,6.72493947]
[1763832084838,0.002,2754.2,2754.1,4.996]
[1763832089265,0.002,2754.2,2754.1,8.62695021]
[1763832090201,0.002,2754.2,2754.1,4.996]
[1763832091207,0.002,2754.2,2754.1,4.5436]
[1763832091698,0.002,2754.2,2754.1,1.116]
[1763832091901,0.002,2754.2,2754.0,0.001]
[1763832095417,6.32458464,2754.1,2754.0,0.001]
[1763832095597,6.66396772,2754.1,2754.0,0.001]
[1763832097389,5.77381672,2754.1,2754.0,0.001]
[1763832097817,5.46702872,2754.1,2754.0,0.001]
[1763832097993,6.01393159,2754.1,2754.0,0.001]
[1763832099198,5.35611959,2754.1,2754.0,0.001]
[1763832100108,1.79327859,2754.1,2754.0,0.001]
[1763832100315,1.24637572,2754.1,2754.0,0.4684]
[1763832101237,1.24637572,2754.1,2754.0,0.001]
[1763832101937,1.24637572,2754.1,2754.0,0.9454]
[1763832101938,0.90699264,2754.1,2754.0,0.9454]
[1763832103135,0.90699264,2754.1,2754.0,0.001]
[1763832103439,0.90699264,2754.1,2754.0,0.4684]
[1763832103643,0.90699264,2754.1,2754.0,0.001]
[1763832104165,0.90699264,2754.1,2754.0,0.4684]
[1763832104640,0.90699264,2754.1,2754.0,0.001]
[1763832105933,0.90899264,2754.1,2754.0,0.001]
[1763832109538,7.93891363,2754.1,2754.0,0.001]
[1763832109729,9.10694038,2754.1,2754.0,0.001]
[1763832110357,8.26611438,2754.1,2754.0,0.001]
[1763832113043,7.80471438,2754.1,2754.0,0.001]
[1763832114162,2.53867538,2754.1,2754.0,0.001]
[1763832114337,1.37064863,2754.1,2754.0,0.001]
[1763832115056,1.24864863,2754.1,2754.0,0.4684]
[1763832115253,1.37064863,2754.1,2754.0,0.9454]
[1763832115487,1.24864863,2754.1,2754.0,0.9454]
[1763832115681,1.03099264,2754.1,2754.0,0.9454]
[1763832116367,1.37086273,2754.1,2754.0,0.9454]
[1763832116695,1.37086273,2754.1,2754.0,0.4684]
[1763832117668,1.37086273,2754.1,2754.0,0.9454]
[1763832117865,1.24886273,2754.1,2754.0,0.9454]
[1763832118071,0.90899264,2754.1,2754.0,0.9454]
[1763832118678,0.002,2754.1,2754.0,0.9454]
[1763832118886,0.002,2754.1,2754.0,1.41397539]
[1763832121195,0.002,2754.1,2754.0,5.29397539]
[1763832121414,0.002,2754.1,2754.0,8.96136827]
[1763832121717,0.002,2754.1,2754.0,10.45955409]
[1763832122210,0.002,2754.2,2754.1,0.405504]
[1763832122498,0.002,2754.4,2754.3,7.88421174]
[1763832122709,0.002,2754.4,2754.3,8.35161174]
[1763832123053,0.002,2754.4,2754.3,8.82861174]
[1763832123211,0.002,2754.4,2754.3,12.4592983]
[1763832123503,0.002,2754.4,2754.3,12.0537943]
[1763832123658,0.002,2754.4,2754.3,12.52236969]
[1763832123860,0.002,2754.4,2754.3,12.92787369]
[1763832124061,0.002,2754.5,2754.4,0.405504]
[1763832124280,0.002,2754.5,2754.4,1.571904]
[1763832124501,0.002,2754.7,2754.4,2.37889664]
[1763832124664,0.002,2755.0,2754.7,7.57870774]
[1763832124866,0.002,2755.6,2755.3,0.4674]
[1763832125075,0.002,2755.6,2755.5,4.20675387]
[1763832125397,0.002,2755.6,2755.5,7.83585929]
[1763832125562,0.002,2755.6,2755.5,8.31285929]
[1763832125759,0.002,2755.6,2755.5,5.15232926]
[1763832126174,0.002,2755.6,2755.5,0.93197539]
[1763832126499,0.002,2755.6,2755.5,0.9174]
[1763832127282,0.002,2755.6,2755.2,4.38945387]
[1763832127704,0.002,2755.6,2755.5,0.4634]
[1763832127922,0.002,2755.6,2755.2,3.93545387]
[1763832127923,0.002,2755.6,2755.2,4.38945387]
[1763832128786,0.002,2755.6,2755.2,0.6501]
[1763832130322,0.002,2755.6,2755.5,0.4634]
[1763832130631,0.002,2755.6,2755.5,0.9174]
[1763832132232,0.002,2755.6,2755.5,5.00117525]
[1763832132786,0.002,2755.6,2755.5,1.37206983]
[1763832133192,0.002,2755.6,2755.5,5.00117525]
[1763832134914,0.002,2755.6,2755.5,1.37206983]
[1763832135925,0.002,2755.6,2755.5,5.00117525]
[1763832136721,0.002,2755.6,2755.5,1.37206983]
[1763832136915,0.002,2755.6,2755.5,5.25206983]
[1763832137735,0.002,2755.6,2755.5,8.88117525]
[1763832137905,0.002,2755.6,2755.5,5.25206983]
[1763832138901,0.002,2755.6,2755.5,8.88117525]
[1763832141527,0.002,2755.6,2755.5,5.25206983]
[1763832141947,0.002,2755.6,2755.5,4.79806983]
[1763832142150,0.002,2755.6,2755.5,4.3434]
[1763832142525,0.002,2755.6,2755.5,3.88]
[1763832142821,0.002,2755.6,2755.4,0.001]
[1763832150775,4.533316,2755.5,2755.4,0.001]
[1763832150925,5.7775414,2755.5,2755.4,0.001]
[1763832151258,6.37023986,2755.5,2755.4,0.001]
[1763832151458,16.04266886,2755.5,2755.4,0.001]
[1763832152328,4.13136186,2755.5,2755.4,0.001]
[1763832152534,4.54834317,2755.5,2755.4,0.001]
[1763832152921,2.40639217,2755.5,2755.4,0.001]
[1763832153118,1.81369371,2755.5,2755.4,0.001]
[1763832153368,5.87514871,2755.5,2755.4,0.001]
[1763832153758,1.81369371,2755.5,2755.4,0.001]
[1763832154346,1.2442254,2755.5,2755.4,0.001]
[1763832154576,1.2442254,2755.5,2755.4,0.4644]
[1763832154760,1.2442254,2755.5,2755.4,0.001]
[1763832156974,0.90699264,2755.5,2755.4,0.4587]
[1763832157675,0.90699264,2755.5,2755.4,0.9522]
[1763832158031,0.002,2755.6,2755.4,0.9522]
[1763832158362,0.002,2755.6,2755.5,1.61311858]
[1763832159028,0.002,2755.6,2755.5,5.242224]
[1763832161229,0.002,2755.6,2755.5,1.61311858]
[1763832164862,0.002,2755.6,2755.5,1.11961858]
[1763832165563,0.002,2755.6,2755.5,1.61311858]
[1763832166957,0.002,2755.6,2755.5,0.9889]
[1763832167961,0.002,2755.6,2755.5,0.4954]
[1763832168562,0.002,2755.6,2755.5,0.9889]
[1763832171549,0.002,2755.6,2755.5,0.4954]
[1763832171886,0.002,2755.6,2755.4,0.001]
[1763832172066,0.002,2755.6,2755.5,0.9889]
[1763832172834,0.002,2755.6,2755.5,1.02519105]
[1763832173035,0.002,2755.6,2755.5,0.9889]
[1763832173552,0.002,2755.6,2755.5,4.61800542]
[1763832173971,0.002,2755.6,2755.5,9.81050206]
[1763832174159,0.002,2755.6,2755.5,11.28246541]
[1763832178658,0.002,2755.6,2755.5,15.11246541]
[1763832178857,0.002,2755.6,2755.5,15.25784937]
[1763832180659,0.002,2755.9,2755.6,5.14249664]
[1763832180858,0.002,2756.2,2756.1,3.93]
[1763832181082,0.002,2756.2,2756.1,10.14498733]
[1763832181397,0.002,2756.2,2756.1,7.21399133]
[1763832181600,0.002,2756.2,2756.1,10.98766319]
[1763832183204,0.33886253,2758.1,2756.2,1.31249664]
[1763832183408,1.24585517,2758.2,2756.4,6.29088984]
[1763832183573,0.48421902,2758.1,2756.4,10.68794856]
[1763832183904,0.48421902,2758.1,2756.4,11.18144856]
[1763832185606,0.33886253,2758.1,2756.4,11.18144856]
[1763832187069,0.90699264,2758.4,2756.4,15.8664412]
[1763832187275,0.405504,2758.8,2756.9,0.405504]
[1763832187508,1.24521306,2758.8,2757.1,5.69548984]
[1763832187806,0.33817988,2758.7,2757.5,3.62647325]
[1763832187985,2.046779,2758.8,2757.6,0.122]
[1763832188304,0.112,2758.9,2757.6,0.6138]
[1763832188509,0.90699264,2758.7,2757.6,0.6138]
[1763832189303,0.112,2758.9,2757.6,0.6138]
[1763832189504,0.90699264,2758.7,2757.6,0.6138]
[1763832189712,0.53460506,2758.6,2757.6,0.6138]
[1763832189873,0.90699264,2758.7,2757.6,0.122]
[1763832190301,5.451558,2758.8,2757.6,0.122]
[1763832190504,0.112,2758.9,2757.6,0.122]
[1763832190722,0.44966302,2758.9,2757.6,3.74833755]
[1763832191026,0.19096448,2758.8,2757.7,0.37483376]
[1763832191212,0.90699264,2758.7,2757.7,0.37483376]
[1763832191955,0.112,2758.9,2757.7,0.37483376]
[1763832192330,2.109353,2758.8,2757.7,0.37483376]
[1763832192625,2.109353,2758.8,2757.7,4.25283376]
[1763832192824,2.109353,2758.8,2757.7,3.878]
[1763832193331,2.109353,2758.8,2757.0,0.4918]
[1763832193332,19.31496964,2758.5,2757.0,0.122]
[1763832193497,0.90699264,2758.3,2757.0,0.122]
[1763832193845,4.62552,2758.2,2757.0,4.0]
[1763832194123,4.62552,2758.2,2757.0,7.62711806]
[1763832194315,0.55325126,2758.1,2757.0,7.62711806]
[1763832194516,0.90699264,2758.4,2757.1,0.4918]
[1763832194719,0.90699264,2758.2,2757.1,0.4918]
[1763832194914,0.90699264,2758.4,2757.1,0.4918]
[1763832195235,0.405504,2758.6,2757.1,0.4918]
[1763832195415,0.90699264,2758.4,2757.1,0.4918]
[1763832195724,1.03183246,2758.3,2757.1,4.11879324]
[1763832195935,0.90699264,2758.4,2757.1,4.11879324]
[1763832196144,0.90699264,2758.4,2757.2,0.4918]
[1763832196313,1.21198755,2758.5,2757.2,0.4918]
[1763832196508,0.122,2758.5,2757.2,0.4918]
[1763832196730,0.122,2758.5,2757.2,1.66637926]
[1763832197096,0.122,2758.5,2757.3,0.4918]
[1763832197299,0.33743652,2758.6,2757.4,0.03626604]
[1763832197615,0.33743652,2758.6,2757.4,3.62660477]
[1763832197817,0.122,2758.7,2757.5,0.4918]
[1763832198031,0.33743652,2758.8,2757.5,1.38830388]
[1763832198287,0.122,2758.8,2757.6,4.3698]
[1763832198485,0.122,2758.8,2757.7,3.878]
[1763832198688,0.122,2758.8,2757.7,4.3698]
[1763832199190,0.122,2758.8,2757.7,3.878]
[1763832199470,0.122,2758.8,2757.8,0.8796]
[1763832200655,0.33743652,2759.0,2757.8,11.51794413]
[1763832200856,2.616564,2759.4,2757.9,0.6138]
[1763832201042,1.36663558,2759.3,2758.0,3.878]
[1763832201244,0.33764294,2759.2,2758.1,3.878]
[1763832201460,0.122,2759.5,2758.2,4.9549]
[1763832201643,0.122,2759.5,2758.3,0.122]
[1763832201983,0.122,2759.5,2758.3,4.23915944]
[1763832202376,2.23212,2759.5,2758.4,0.4918]
[1763832202580,0.33764294,2759.4,2758.4,0.4918]
[1763832202777,0.122,2759.8,2758.4,0.4918]
[1763832202778,6.454559,2759.7,2758.5,4.51245416]
[1763832202980,0.90699264,2759.4,2758.5,4.51245416]
[1763832203177,0.122,2759.8,2758.5,3.878]
[1763832203379,0.90699264,2759.4,2758.5,3.878]
[1763832203586,0.122,2759.8,2758.5,3.878]
[1763832203753,0.90699264,2759.4,2758.5,3.878]
[1763832203955,4.348351,2759.6,2758.5,4.3698]
[1763832204155,0.86329843,2759.5,2758.5,4.3698]
[1763832204381,0.33776407,2759.4,2758.6,0.4918]
[1763832204581,0.90699264,2759.6,2758.6,0.4918]
[1763832204795,0.33776407,2759.5,2758.6,0.4918]
[1763832204992,0.33776407,2759.7,2758.6,0.4918]
[1763832205194,0.33776407,2759.7,2758.7,3.878]
[1763832205358,0.90699264,2759.7,2758.8,0.43698]
[1763832205560,0.122,2759.9,2758.8,0.92878]
[1763832205976,4.227705,2759.8,2758.8,0.92878]
[1763832206169,4.227705,2759.8,2758.8,0.43698]
[1763832206170,0.90699264,2759.7,2758.8,0.43698]
[1763832206491,0.90699264,2759.9,2758.8,0.43698]
[1763832206695,1.03224625,2759.8,2758.7,4.3698]
[1763832206897,0.90699264,2759.9,2758.7,4.3698]
[1763832207066,6.129175,2759.7,2758.7,4.3698]
[1763832207262,0.33782898,2759.6,2758.7,3.878]
[1763832207595,0.33782898,2759.6,2758.8,0.4918]
[1763832207761,0.90699264,2759.8,2758.8,0.4918]
[1763832207962,1.23251514,2759.7,2758.8,0.4918]
[1763832208175,0.33782898,2759.6,2758.7,3.878]
[1763832208376,0.90699264,2759.8,2758.7,3.878]
[1763832208594,0.33782898,2759.7,2758.7,3.878]
[1763832208796,8.551197,2759.9,2758.7,3.878]
[1763832208961,1.02899264,2760.1,2758.7,3.878]
[1763832208962,0.90699264,2759.6,2758.7,3.878]
[1763832209158,2.28421724,2759.5,2758.7,3.878]
[1763832209395,0.33782898,2759.4,2758.5,3.878]
[1763832209594,0.122,2759.5,2758.5,3.878]
[1763832209776,4.26873864,2759.4,2758.5,3.878]
[1763832209978,0.33782898,2759.3,2758.5,3.878]
[1763832210369,0.33782898,2759.3,2758.5,4.3698]
[1763832211205,0.33782898,2759.3,2758.4,3.878]
[1763832211405,0.33782898,2759.4,2758.4,3.878]
[1763832211570,0.33782898,2759.3,2758.4,3.878]
[1763832211891,2.74582,2759.0,2758.3,0.001]
[1763832212068,0.33782898,2759.2,2758.3,0.001]
[1763832212069,0.82511024,2758.9,2758.3,0.001]
[1763832212400,5.777232,2758.7,2758.3,0.001]
[1763832212568,0.33782898,2758.6,2758.3,0.001]
[1763832212766,4.764732,2758.7,2758.3,0.001]
[1763832212994,0.33782898,2758.6,2758.3,0.001]
[1763832213293,0.33782898,2758.7,2758.3,0.001]
[1763832214202,0.33782898,2758.6,2758.3,0.001]
[1763832214504,0.33782898,2758.7,2758.3,0.001]
[1763832214815,0.33782898,2758.6,2758.3,0.001]
[1763832215108,2.488125,2758.4,2758.3,0.001]
[1763832215408,0.33782898,2758.4,2758.3,0.001]
[1763832215614,0.33782898,2758.7,2758.3,0.001]
[1763832215813,0.33782898,2758.6,2758.3,0.001]
[1763832216000,0.33782898,2758.5,2758.3,0.001]
[1763832216169,0.33782898,2758.7,2758.3,0.001]
[1763832216372,0.33782898,2758.6,2758.3,0.001]
[1763832216671,0.33782898,2758.5,2758.3,0.001]
[1763832216898,0.90699264,2758.5,2758.3,0.001]
[1763832217113,0.33782898,2758.4,2758.3,0.001]
[1763832217316,7.225032,2758.6,2758.3,0.001]
[1763832217532,1.09411508,2758.5,2758.3,0.001]
[1763832217729,0.33782898,2758.4,2758.3,0.001]
[1763832218030,0.33782898,2758.7,2758.3,0.001]
[1763832218190,0.33782898,2758.6,2758.3,0.001]
[1763832218390,0.33782898,2758.7,2758.3,0.001]
[1763832218689,0.33782898,2758.6,2758.3,0.001]
[1763832218900,0.33782898,2758.7,2758.3,0.001]
[1763832219104,0.33782898,2758.6,2758.3,0.001]
[1763832219311,0.33782898,2758.7,2758.3,0.001]
[1763832219612,0.4696,2758.6,2758.3,0.001]
[1763832219817,0.33782898,2758.5,2758.3,0.001]
[1763832220687,0.33782898,2758.5,2758.4,0.4978]
[1763832220885,0.122,2758.7,2758.3,0.001]
[1763832221887,0.90699264,2758.5,2758.3,0.001]
[1763832222086,1.32817954,2758.4,2758.3,0.001]
[1763832222316,0.33782898,2758.4,2758.3,0.001]
[1763832222520,0.33782898,2758.5,2758.3,0.001]
[1763832230528,3.536996,2758.4,2758.3,0.001]
[1763832230830,3.87482498,2758.4,2758.3,0.001]
[1763832231345,4.23342795,2758.4,2758.3,0.001]
[1763832231529,4.70373075,2758.4,2758.3,0.001]
[1763832232436,5.79364306,2758.4,2758.3,0.001]
[1763832232644,2.80615306,2758.4,2758.3,0.001]
[1763832232837,2.33585026,2758.4,2758.3,0.001]
[1763832233740,0.122,2758.7,2758.3,0.4988]
[1763832233909,0.494,2758.6,2758.3,0.001]
[1763832234115,0.33893253,2758.5,2758.3,0.001]
[1763832234737,2.543146,2758.4,2758.3,0.001]
[1763832234942,2.88075385,2758.4,2758.3,0.001]
[1763832235344,3.21984112,2758.4,2758.3,0.001]
[1763832235773,0.67669512,2758.4,2758.3,0.001]
[1763832235944,0.494,2758.6,2758.3,0.001]
[1763832235945,0.33908727,2758.5,2758.3,0.001]
[1763832236317,1.24607991,2758.5,2758.3,0.001]
[1763832236549,0.33908727,2758.4,2758.3,0.001]
[1763832236750,0.33908727,2758.5,2758.3,0.001]
[1763832238841,2.479534,2758.4,2758.3,0.001]
[1763832239047,3.24058266,2758.4,2758.3,0.001]
[1763832239261,0.76104866,2758.4,2758.3,0.001]
[1763832239429,2.81862127,2758.4,2758.3,0.001]